bitfinex-derivatives/quotes_SOLF0:USTF0_20250520
["timestamp","ask_amount","ask_price","bid_price","bid_amount"]
[1747716834853,0.04443394,170.17,170.14,0.03794024]
[1747716835544,0.04443394,170.17,170.14,5.91374024]
[1747716836051,0.04443394,170.17,170.14,0.03794024]
[1747716837252,0.04443394,170.17,170.15,5.8755]
[1747716840854,0.04443394,170.17,170.16,5.8754]
[1747716842051,0.04443394,170.17,170.15,5.8757]
[1747716842258,0.04443394,170.17,170.14,0.03794024]
[1747716843659,0.04443394,170.17,170.16,5.8754]
[1747716845558,17.16629334,170.31,170.21,5.8736]
[1747716845854,61.54,170.26,170.21,5.8736]
[1747716846060,67.4122,170.26,170.21,5.8736]
[1747716846561,0.04351409,170.25,170.22,0.04331412]
[1747716849066,5.8727,170.24,170.22,0.04331412]
[1747716849263,0.04351409,170.25,170.22,0.04331412]
[1747716849760,5.873,170.23,170.22,0.04331412]
[1747716850463,0.04351409,170.25,170.11,67.77371061]
[1747716850668,61.54,170.24,170.12,2.0029]
[1747716850869,5.8737,170.21,170.17,5.8748]
[1747716851363,5.91692876,170.21,170.17,5.9191487]
[1747716852162,0.04322876,170.21,170.17,0.0443487]
[1747716852767,0.04322876,170.21,170.2,5.874]
[1747716856461,0.04322876,170.21,170.17,0.0443487]
[1747716857365,127.84917718,170.32,170.17,0.0443487]
[1747716857366,103.93546657,170.32,170.18,67.77371061]
[1747716857564,103.93546657,170.32,170.21,6.98475937]
[1747716857862,103.93546657,170.32,170.21,6.98519517]
[1747716858065,103.93546657,170.32,170.21,6.98540068]
[1747716858366,0.04377822,170.28,170.25,0.03870367]
[1747716858967,0.04377822,170.28,170.27,5.8716]
[1747716859872,7.35828415,170.28,170.27,5.8716]
[1747716864362,0.04377822,170.28,170.27,5.8716]
[1747716867974,7.822e-05,170.28,170.27,12.85700068]
[1747716868170,7.31450593,170.38,170.27,6.98540068]
[1747716868474,14.29990661,170.38,170.24,6.98540068]
[1747716868665,5.8696,170.33,170.28,5.871]
[1747716868865,67.3296,170.33,170.24,6.98540068]
[1747716869072,67.3296,170.33,170.27,0.04005704]
[1747716869273,61.46,170.33,170.29,5.8707]
[1747716870672,61.46,170.33,170.28,5.8712]
[1747716871067,67.3297,170.33,170.29,5.8709]
[1747716871275,61.46,170.33,170.27,0.04005704]
[1747716871776,5.8702,170.32,170.28,5.8713]
[1747716872671,61.46,170.33,170.27,0.04005704]
[1747716872877,61.46,170.38,170.27,0.04005704]
[1747716873175,61.46,170.38,170.31,0.04179355]
[1747716873375,61.46,170.38,170.33,5.8695]
[1747716873676,61.46,170.38,170.31,0.04179355]
[1747716874278,67.328,170.38,170.33,5.8693]
[1747716874675,5.8683,170.37,170.33,5.8693]
[1747716876977,61.46,170.38,170.31,0.04179355]
[1747716877568,61.46,170.38,170.35,5.8688]
[1747716877872,61.46,170.38,170.35,0.03803397]
[1747716878578,67.3279,170.38,170.35,0.03803397]
[1747716878780,61.46,170.38,170.35,0.03803397]
[1747716879681,5.8685,170.37,170.35,0.03803397]
[1747716879884,61.46,170.38,170.35,5.90663397]
[1747716881183,61.46,170.38,170.35,0.03803397]
[1747716882676,61.46,170.38,170.35,5.90683397]
[1747716882886,61.46,170.38,170.35,0.03803397]
[1747716883585,67.3075,170.39,170.35,0.03803397]
[1747716884275,1.9186,170.42,170.35,0.03803397]
[1747716885185,5.8671,170.41,170.35,5.90663397]
[1747716885382,5.8671,170.41,170.35,0.03803397]
[1747716885684,65.04,170.41,170.35,0.03803397]
[1747716885985,5.8672,170.4,170.35,5.90673397]
[1747716886582,65.04,170.41,170.36,5.8685]
[1747716888585,70.9069,170.41,170.36,5.8685]
[1747716888885,70.9069,170.41,170.35,5.90683397]
[1747716888886,65.04,170.41,170.35,5.90683397]
[1747716889288,5.8672,170.4,170.35,5.90683397]
[1747716890986,5.8676,170.39,170.35,5.90683397]
[1747716891288,65.04,170.41,170.35,0.03803397]
[1747716891487,6.98540068,170.4,170.35,0.03803397]
[1747716891690,5.8685,170.36,170.35,0.03803397]
[1747716891889,70.9085,170.36,170.35,0.03803397]
[1747716892291,65.04,170.36,170.3,5.8706]
[1747716892690,5.8697,170.33,170.29,5.8709]
[1747716892890,5.8697,170.33,170.24,65.04]
[1747716893389,0.04130967,170.3,170.28,5.871]
[1747716893589,0.04130967,170.3,170.27,0.04103917]
[1747716894189,0.04130967,170.3,170.28,5.871]
[1747716894596,0.04130967,170.3,170.27,0.04103917]
[1747716894998,0.04130967,170.3,170.28,5.8713]
[1747716895697,0.04130967,170.3,170.27,5.91253917]
[1747716896295,0.04130967,170.3,170.28,5.8712]
[1747716898710,0.04130967,170.3,170.27,0.04103917]
[1747716899311,0.04130967,170.3,170.27,5.91243917]
[1747716900708,0.04130967,170.3,170.27,0.04103917]
[1747716900917,5.871,170.29,170.27,0.04103917]
[1747716901211,0.04130967,170.3,170.27,0.04103917]
[1747716901807,5.91190967,170.3,170.27,0.04103917]
[1747716902809,0.04130967,170.3,170.19,2.071]
[1747716903115,65.04,170.32,170.19,5.8743]
[1747716903116,5.8727,170.24,170.19,5.8743]
[1747716903405,65.04,170.23,170.19,5.8743]
[1747716903612,65.04,170.23,170.16,65.04]
[1747716903804,0.03865081,170.21,170.18,0.04167972]
[1747716905711,0.03865081,170.21,170.2,5.874]
[1747716906413,0.03865081,170.21,170.19,5.8743]
[1747716906605,0.03865081,170.21,170.18,0.04167972]
[1747716906802,0.03865081,170.21,170.18,5.91627972]
[1747716908018,0.03865081,170.21,170.2,5.874]
[1747716908317,3.8923,170.29,170.18,72.0870804]
[1747716908512,3.8923,170.29,170.26,5.8719]
[1747716908713,1.9654,170.29,170.19,5.7182]
[1747716908918,65.06,170.29,170.19,5.7182]
[1747716909212,65.06,170.29,170.21,6.98540068]
[1747716909416,0.04369803,170.26,170.22,0.03764089]
[1747716909817,0.04369803,170.26,170.25,5.8723]
[1747716910212,65.06,170.34,170.25,5.88]
[1747716910413,65.06,170.34,170.33,5.8696]
[1747716913224,65.06,170.34,170.32,5.91486244]
[1747716915727,65.06,170.34,170.33,5.8696]
[1747716917823,71.1679,170.38,170.33,5.8696]
[1747716918126,65.3,170.38,170.32,0.04496244]
[1747716919724,65.3,170.38,170.34,5.8689]
[1747716920226,65.3,170.38,170.32,0.04496244]
[1747716920928,65.3,170.38,170.34,5.869]
[1747716921227,65.3,170.38,170.32,0.04496244]
[1747716922626,65.3,170.38,170.34,5.8689]
[1747716924027,71.1681,170.38,170.33,5.8693]
[1747716924420,65.3,170.38,170.33,5.8693]
[1747716924827,71.1679,170.38,170.33,5.8693]
[1747716925029,71.1679,170.38,170.34,5.8691]
[1747716926429,65.3,170.38,170.35,5.8687]
[1747716926832,65.3,170.38,170.32,0.04496244]
[1747716927626,65.3,170.38,170.35,5.8686]
[1747716927830,65.3,170.38,170.32,0.04496244]
[1747716928126,71.1465,170.42,170.32,0.04496244]
[1747716928429,71.1465,170.42,170.33,6.98540068]
[1747716928624,71.1465,170.42,170.36,0.03810538]
[1747716928825,5.8669,170.41,170.36,0.03810538]
[1747716929531,5.8669,170.41,170.36,5.90640538]
[1747716929733,5.8674,170.4,170.36,0.03810538]
[1747716931333,5.8674,170.4,170.36,5.90640538]
[1747716932334,5.8676,170.39,170.36,0.03810538]
[1747716932839,5.8669,170.41,170.37,5.8682]
[1747716933033,65.28,170.42,170.36,0.03810538]
[1747716933438,65.28,170.42,170.38,5.8676]
[1747716933935,1.05068365,170.46,170.45,5.8654]
[1747716934333,10.91472547,170.49,170.44,7.02483182]
[1747716934534,7.27610545,170.49,170.44,7.02483182]
[1747716934740,76.19472547,170.51,170.47,6.98540068]
[1747716935033,76.19472547,170.51,170.5,5.8637]
[1747716935238,10.91472547,170.51,170.5,5.8637]
[1747716936938,2.547e-05,170.51,170.5,5.8637]
[1747716940537,65.28,170.56,170.52,5.863]
[1747716941744,65.28,170.56,170.51,5.8633]
[1747716941942,65.28,170.56,170.49,0.04313892]
[1747716943539,65.28,170.56,170.53,5.8623]
[1747716943739,65.28,170.56,170.53,5.9053505]
[1747716944045,65.28,170.56,170.54,5.8623]
[1747716944246,65.28,170.56,170.53,0.0430505]
[1747716945046,65.28,170.56,170.54,5.8623]
[1747716946149,65.28,170.56,170.55,5.862]
[1747716948147,514.24540068,170.64,170.53,0.0430505]
[1747716948337,64.9,170.6,170.53,0.0430505]
[1747716948737,64.9,170.6,170.53,5.9056505]
[1747716948941,5.8611,170.58,170.53,5.9056505]
[1747716949142,64.9,170.6,170.53,5.9056505]
[1747716949550,64.9,170.6,170.53,0.0430505]
[1747716949752,64.9,170.6,170.45,6.98540068]
[1747716949952,6.98540068,170.58,170.45,6.98540068]
[1747716950153,5.862,170.56,170.5,5.8636]
[1747716950452,64.9,170.55,170.5,5.8636]
[1747716950644,64.9,170.55,170.45,6.98540068]
[1747716950645,0.04197654,170.54,170.51,5.9079576]
[1747716950841,0.04197654,170.54,170.51,0.0446576]
[1747716951753,0.04197654,170.54,170.53,5.8627]
[1747716956652,0.04197654,170.54,170.51,0.0446576]
[1747716956959,0.04197654,170.54,170.45,6.98540068]
[1747716957157,5.8629,170.53,170.48,5.8641]
[1747716957360,64.9,170.52,170.48,5.8641]
[1747716957960,64.94403215,170.52,170.48,5.90684936]
[1747716958556,64.94403215,170.52,170.49,5.864]
[1747716959159,64.94403215,170.52,170.48,0.04274936]
[1747716959857,0.04403215,170.52,170.51,5.8634]
[1747716962462,0.04403215,170.52,170.48,0.04274936]
[1747716962961,5.90713215,170.52,170.48,0.04274936]
[1747716963260,0.04403215,170.52,170.48,0.04274936]
[1747716963460,5.8634,170.51,170.48,0.04274936]
[1747716963663,0.04403215,170.52,170.39,74.82540068]
[1747716963858,6.98540068,170.52,170.38,6.98540068]
[1747716964664,0.0435303,170.47,170.43,0.0429745]
[1747716964856,67.86,170.46,170.43,0.0429745]
[1747716965163,67.86,170.46,170.35,74.84540068]
[1747716965164,4.0852,170.45,170.35,74.84540068]
[1747716965556,4.0852,170.45,170.35,6.98540068]
[1747716965757,4.0852,170.45,170.32,6.98540068]
[1747716965965,0.04099325,170.41,170.37,0.04310638]
[1747716966165,67.86,170.4,170.37,0.04310638]
[1747716966856,67.86,170.4,170.38,5.8678]
[1747716967059,67.86,170.4,170.37,0.04310638]
[1747716967261,67.86,170.4,170.39,5.8675]
[1747716973168,0.04099325,170.41,170.4,5.8671]
[1747716975064,9.325e-05,170.41,170.4,5.8671]
[1747716975462,67.88,170.47,170.46,5.8651]
[1747716975969,3.9777,170.49,170.48,5.8644]
[1747716976167,67.88,170.5,170.41,11.16058973]
[1747716976369,0.03731124,170.47,170.44,0.03869114]
[1747716977569,0.03731124,170.47,170.46,5.8651]
[1747716978164,105.04673555,170.57,170.55,5.862]
[1747716978466,69.8251,170.56,170.55,5.862]
[1747716978668,67.88,170.56,170.55,5.862]
[1747716981170,0.04194284,170.57,170.56,5.8616]
[1747716983871,4.284e-05,170.57,170.56,5.8616]
[1747716984074,67.86,170.64,170.63,5.8592]
[1747716984271,6.0591,170.68,170.53,17.06308973]
[1747716984472,67.86,170.67,170.53,17.06308973]
[1747716984676,67.86,170.67,170.53,73.7425]
[1747716985172,0.04011946,170.62,170.61,5.8596]
[1747716985372,0.04323714,170.63,170.61,5.8596]
[1747716985572,0.04323714,170.63,170.6,0.04351084]
[1747716985776,0.04323714,170.63,170.62,5.8596]
[1747716986772,0.04323714,170.63,170.61,5.8598]
[1747716986978,0.04323714,170.63,170.6,0.04351084]
[1747716987573,0.04323714,170.63,170.62,5.8596]
[1747716993578,0.04323714,170.63,170.61,5.8599]
[1747716993980,0.04323714,170.63,170.6,0.04351084]
[1747716995282,0.04323714,170.63,170.62,5.8596]
[1747716995578,0.04323714,170.63,170.6,0.04351084]
[1747716995979,0.04323714,170.63,170.6,5.90351084]
[1747716997380,0.04323714,170.63,170.6,0.04351084]
[1747716997682,66.02,170.62,170.6,0.04351084]
[1747717000888,71.8797,170.62,170.6,0.04351084]
[1747717001080,66.02,170.62,170.49,11.12687567]
[1747717001983,66.02,170.62,170.48,66.02]
[1747717002183,0.03795763,170.57,170.53,0.03798816]
[1747717002378,66.02,170.56,170.53,0.03798816]
[1747717003481,66.02,170.56,170.13,546.0]
[1747717003681,11.15573623,170.54,170.35,66.02]
[1747717003984,5.8651,170.46,170.36,66.02]
[1747717004186,66.02,170.45,170.39,5.8672]
[1747717004581,0.03929909,170.44,170.4,0.04271606]
[1747717005183,0.03929909,170.44,170.4,5.90981606]
[1747717005484,0.03929909,170.44,170.4,0.04271606]
[1747717005889,0.03929909,170.44,170.42,5.8662]
[1747717006586,0.03929909,170.44,170.43,5.8661]
[1747717006782,0.03929909,170.44,170.4,0.04271606]
[1747717007580,5.90519909,170.44,170.4,0.04271606]
[1747717007791,0.03929909,170.44,170.4,0.04271606]
[1747717008789,3.94829909,170.44,170.4,0.04271606]
[1747717010091,9.81409909,170.44,170.4,0.04271606]
[1747717010291,3.94829909,170.44,170.31,66.06]
[1747717010492,3.909,170.44,170.31,66.06]
[1747717011390,0.0392929,170.39,170.36,0.0409452]
[1747717012592,0.0392929,170.39,170.37,5.8682]
[1747717013189,0.0392929,170.39,170.36,5.9093452]
[1747717014192,0.0392929,170.39,170.36,0.0409452]
[1747717021000,2.1140929,170.39,170.36,0.0409452]
[1747717022287,9.09262337,170.39,170.26,1.9819]
[1747717022487,9.05333047,170.39,170.26,1.9819]
[1747717022689,5.8689,170.35,170.26,1.9819]
[1747717022900,66.1,170.34,170.26,1.9819]
[1747717023194,0.04254273,170.32,170.28,5.91310826]
[1747717023396,0.04254273,170.32,170.28,0.04210826]
[1747717024502,0.04254273,170.32,170.29,5.8709]
[1747717025102,0.04254273,170.32,170.28,0.04210826]
[1747717025304,0.04254273,170.32,170.28,5.91310826]
[1747717026201,0.04254273,170.32,170.28,0.04210826]
[1747717026698,0.04254273,170.32,170.29,5.8709]
[1747717027103,0.04254273,170.32,170.28,0.04210826]
[1747717027699,5.91244273,170.32,170.28,5.91330826]
[1747717027901,0.04254273,170.32,170.28,0.04210826]
[1747717028098,0.04254273,170.32,170.29,5.8706]
[1747717028301,0.04254273,170.32,170.28,0.04210826]
[1747717029895,5.8709,170.29,170.28,0.04210826]
[1747717030096,64.78,170.29,170.28,0.04210826]
[1747717033512,64.78,170.29,170.28,5.91340826]
[1747717034313,0.04254273,170.32,170.28,0.04210826]
[1747717035609,0.04254273,170.32,170.3,5.8703]
[1747717036410,0.04254273,170.32,170.31,5.8702]
[1747717045828,4.273e-05,170.32,170.31,5.8702]
[1747717052632,4.273e-05,170.32,170.29,5.8707]
[1747717052833,4.273e-05,170.32,170.28,0.04210826]
[1747717054727,4.273e-05,170.32,170.28,5.91320826]
[1747717055535,4.273e-05,170.32,170.29,5.8709]
[1747717056932,4.273e-05,170.32,170.3,5.8705]
[1747717057235,4.273e-05,170.32,170.28,0.04210826]
[1747717057423,63.48,170.31,170.28,0.04210826]
[1747717058832,69.3503,170.31,170.28,0.04210826]
[1747717059036,63.48,170.31,170.28,5.91340826]
[1747717059231,63.48,170.31,170.28,0.04210826]
[1747717059431,4.273e-05,170.32,170.31,5.8702]
[1747717068039,4.273e-05,170.32,170.3,5.8705]
[1747717068238,4.273e-05,170.32,170.28,0.04210826]
[1747717068936,4.273e-05,170.32,170.29,5.8707]
[1747717069136,4.273e-05,170.32,170.28,0.04210826]
[1747717069735,4.273e-05,170.32,170.29,5.8709]
[1747717070431,4.273e-05,170.32,170.28,0.04210826]
[1747717071327,63.5,170.31,170.28,0.04210826]
[1747717071530,63.5,170.31,170.28,5.91340826]
[1747717072138,63.5,170.31,170.28,0.04210826]
[1747717075542,69.3705,170.31,170.28,0.04210826]
[1747717075741,63.5,170.31,170.28,0.04210826]
[1747717076240,5.8708,170.3,170.28,0.04210826]
[1747717076536,63.5,170.31,170.28,0.04210826]
[1747717076741,5.8709,170.29,170.28,0.04210826]
[1747717077941,5.8718,170.27,170.18,63.5]
[1747717078244,63.5,170.26,170.18,63.5]
[1747717078642,63.5,170.26,170.22,5.8731]
[1747717079042,63.5429768,170.26,170.22,5.91418721]
[1747717079243,69.4150768,170.26,170.22,5.91418721]
[1747717080439,69.4150768,170.26,170.22,0.04108721]
[1747717081645,63.5429768,170.26,170.22,0.04108721]
[1747717081948,63.5429768,170.26,170.18,5.8746]
[1747717082144,4.0114,170.25,170.14,63.5]
[1747717082543,5.8734,170.22,170.17,5.8748]
[1747717082742,63.5,170.22,170.17,5.8748]
[1747717082945,0.03843594,170.21,170.18,0.03988677]
[1747717084450,0.03843594,170.21,170.18,5.91458677]
[1747717085548,0.03843594,170.21,170.18,0.03988677]
[1747717087450,0.03843594,170.21,170.2,5.874]
[1747717092743,0.03843594,170.21,170.18,0.03988677]
[1747717093159,62.67843594,170.21,170.18,0.03988677]
[1747717094252,62.67843594,170.21,170.19,5.8741]
[1747717094955,62.67843594,170.21,170.18,0.03988677]
[1747717095845,5.8741,170.2,170.18,0.03988677]
[1747717096250,62.67843594,170.21,170.18,0.03988677]
[1747717097048,5.8741,170.2,170.18,0.03988677]
[1747717098057,62.67843594,170.21,170.18,0.03988677]
[1747717100256,5.8744,170.19,170.18,0.03988677]
[1747717100452,69.65696641,170.21,170.1,64.81652155]
[1747717100658,69.61853047,170.21,170.09,3.9495]
[1747717100858,62.64,170.21,170.09,10.92803047]
[1747717101061,507.68,170.23,170.09,10.92803047]
[1747717101258,62.64,170.22,170.09,10.92803047]
[1747717101459,0.03694152,170.17,170.16,5.8752]
[1747717101654,0.03800029,170.18,170.16,5.8752]
[1747717101966,0.03800029,170.18,170.17,5.8751]
[1747717104360,17.62,170.16,169.89,17.62]
[1747717104561,17.62,170.04,169.87,10.19354426]
[1747717104757,62.66,170.08,169.94,6.99669422]
[1747717104955,65.32,170.11,169.97,6.99669422]
[1747717105367,0.03863218,170.06,170.03,5.8799]
[1747717105564,0.03863218,170.06,170.02,65.35866778]
[1747717105965,0.03863218,170.06,170.02,0.03866778]
[1747717106961,6.99669422,170.05,170.02,0.03866778]
[1747717107668,5.91753218,170.06,170.02,0.03866778]
[1747717108066,5.8793,170.05,170.02,0.03866778]
[1747717113972,5.8796,170.04,170.02,0.03866778]
[1747717114369,0.03863218,170.06,170.02,0.03866778]
[1747717115666,82.58248489,170.15,170.02,0.03866778]
[1747717115970,88.45828489,170.15,170.01,65.36]
[1747717116671,0.04205911,170.1,170.06,0.04467583]
[1747717116873,0.04205911,170.1,170.06,65.40467583]
[1747717117267,0.04205911,170.1,170.07,5.8784]
[1747717118366,0.04205911,170.1,170.06,0.04467583]
[1747717118872,0.04205911,170.1,170.08,5.8779]
[1747717121276,0.04205911,170.1,170.07,5.8785]
[1747717121574,0.04205911,170.1,170.06,0.04467583]
[1747717122269,0.04205911,170.1,170.06,2.04717583]
[1747717122565,0.04205911,170.1,170.09,5.8778]
[1747717122969,0.04205911,170.1,170.07,65.36]
[1747717123273,0.04205911,170.1,170.07,71.2382]
[1747717123574,0.04205911,170.1,170.07,65.36]
[1747717123768,0.04205911,170.1,170.06,71.29787583]
[1747717124176,0.04205911,170.1,170.07,5.8784]
[1747717124670,0.04205911,170.1,170.06,0.04467583]
[1747717126576,0.04205911,170.1,170.08,5.878]
[1747717127576,0.04205911,170.1,170.09,5.8778]
[1747717129871,0.04205911,170.1,170.06,0.04467583]
[1747717130381,0.04205911,170.1,170.06,5.92347583]
[1747717130580,0.04205911,170.1,170.06,0.04467583]
[1747717132491,0.04205911,170.1,170.06,5.92347583]
[1747717133187,5.91985911,170.1,170.06,0.04467583]
[1747717134493,5.91985911,170.1,170.06,5.92347583]
[1747717134896,0.04205911,170.1,170.06,5.92347583]
[1747717136593,5.91955911,170.1,170.06,5.92347583]
[1747717136995,0.04205911,170.1,170.06,5.92347583]
[1747717137696,0.04205911,170.1,170.06,0.04467583]
[1747717138295,5.91975911,170.1,170.06,0.04467583]
[1747717138496,0.04205911,170.1,170.06,0.04467583]
[1747717139094,0.04205911,170.1,170.06,5.92347583]
[1747717140399,0.04205911,170.1,170.06,0.04467583]
[1747717141794,7.04127574,170.1,170.06,0.04467583]
[1747717142093,9.03697574,170.1,170.06,0.04467583]
[1747717143598,2.03775911,170.1,170.06,0.04467583]
[1747717144500,2.03775911,170.1,170.07,5.8783]
[1747717145001,0.04205911,170.1,170.07,5.8783]
[1747717146194,0.04205911,170.1,170.08,5.8782]
[1747717146503,0.04205911,170.1,170.09,5.8778]
[1747717146702,0.04205911,170.1,170.06,0.04467583]
[1747717147904,0.04205911,170.1,170.07,5.8784]
[1747717148502,0.04205911,170.1,170.06,0.04467583]
[1747717149100,5.91985911,170.1,170.06,5.92347583]
[1747717149300,0.04205911,170.1,170.06,5.92347583]
[1747717149499,0.04205911,170.1,170.06,0.04467583]
[1747717149895,6.99921663,170.09,170.06,0.04467583]
[1747717150201,8.91231663,170.09,170.01,64.12]
[1747717150404,6.99921663,170.06,170.01,64.12]
[1747717150805,6.99921663,170.06,169.96,571.88]
[1747717151005,5.8805,170.02,169.98,5.8813]
[1747717151200,0.04208539,170.03,169.99,0.0378486]
[1747717151504,5.8805,170.02,169.99,0.0378486]
[1747717152205,5.8805,170.02,169.99,5.9191486]
[1747717152400,0.04208539,170.03,169.99,0.0378486]
[1747717152805,0.04208539,170.03,170.02,5.8802]
[1747717153207,0.04208539,170.03,169.99,0.0378486]
[1747717153906,0.04208539,170.03,170.0,5.8809]
[1747717154311,0.04208539,170.03,170.0,64.14]
[1747717154507,0.04208539,170.03,170.02,5.8802]
[1747717156198,71.13921663,170.11,170.05,5.8789]
[1747717156399,64.14,170.11,170.04,64.14]
[1747717156709,64.14,170.11,170.06,5.8785]
[1747717157009,64.14,170.11,170.04,64.14]
[1747717157204,0.04524437,170.09,170.06,0.04003714]
[1747717157709,0.04524437,170.09,170.06,5.91863714]
[1747717158107,0.04524437,170.09,170.06,0.04003714]
[1747717158304,0.04524437,170.09,170.08,5.8782]
[1747717160110,0.04524437,170.09,170.06,0.04003714]
[1747717161512,5.8785,170.07,170.06,0.04003714]
[1747717162412,9.77284437,170.09,170.06,0.04003714]
[1747717162711,3.89474437,170.09,170.06,0.04003714]
[1747717162914,5.8782,170.08,170.06,0.04003714]
[1747717164914,9.77264437,170.09,170.06,0.04003714]
[1747717165415,5.8783,170.08,170.06,0.04003714]
[1747717165614,3.89474437,170.09,170.06,0.04003714]
[1747717166314,5.8785,170.07,170.06,0.04003714]
[1747717177024,0.04524437,170.09,170.06,0.04003714]
[1747717177619,5.92334437,170.09,170.06,0.04003714]
[1747717180225,5.8783,170.08,170.06,0.04003714]
[1747717182127,5.8785,170.07,170.06,0.04003714]
[1747717182324,0.04524437,170.09,170.06,0.04003714]
[1747717183828,5.8784,170.08,170.06,0.04003714]
[1747717184330,0.04524437,170.09,170.06,0.04003714]
[1747717184627,5.92334437,170.09,170.06,0.04003714]
[1747717185227,5.8782,170.08,170.06,0.04003714]
[1747717186029,5.8785,170.07,170.06,0.04003714]
[1747717190132,5.8783,170.08,170.06,0.04003714]
[1747717191932,5.92304437,170.09,170.06,0.04003714]
[1747717195134,5.8783,170.08,170.06,0.04003714]
[1747717196135,0.04524437,170.09,170.06,0.04003714]
[1747717197036,0.04524437,170.09,170.06,5.91863714]
[1747717198331,0.04524437,170.09,170.07,1.47021855]
[1747717199036,5.92314437,170.09,170.06,0.04003714]
[1747717199734,5.92314437,170.09,170.07,1.47027481]
[1747717200330,5.92314437,170.09,170.06,0.04003714]
[1747717200639,0.04524437,170.09,170.06,0.04003714]
[1747717201339,0.04524437,170.09,170.06,62.72003714]
[1747717201945,62.68,170.18,170.06,62.72003714]
[1747717202239,62.68,170.18,170.07,1.46975051]
[1747717202432,5.8747,170.18,170.07,3.42185051]
[1747717202846,5.8049,170.19,170.08,1.46975051]
[1747717203033,0.0399716,170.15,170.12,0.04504088]
[1747717203235,0.0399716,170.15,170.12,62.72504088]
[1747717203636,0.0399716,170.15,170.14,5.8761]
[1747717203837,0.0399716,170.15,170.14,7.34585051]
[1747717204033,5.8736,170.22,170.17,5.8749]
[1747717204437,69.66232722,170.24,170.17,5.8749]
[1747717204738,5.8733,170.23,170.17,5.8749]
[1747717204940,69.66232722,170.24,170.17,5.8749]
[1747717205237,0.04429617,170.22,170.19,0.0370541]
[1747717205740,5.8737,170.21,170.19,0.0370541]
[1747717205935,0.04429617,170.22,170.19,0.0370541]
[1747717206434,5.8737,170.21,170.19,0.0370541]
[1747717206635,0.04429617,170.22,170.19,0.0370541]
[1747717206835,5.8737,170.21,170.19,0.0370541]
[1747717207140,0.04429617,170.22,170.19,0.0370541]
[1747717207340,5.8755,170.16,170.14,1.46931644]
[1747717207640,7.00232722,170.21,170.14,1.46931644]
[1747717207841,5.8741,170.2,170.16,5.8754]
[1747717208340,0.04080629,170.2,170.16,5.91892315]
[1747717208942,0.04080629,170.2,170.16,0.04352315]
[1747717209343,5.91510629,170.2,170.16,0.04352315]
[1747717210445,5.8746,170.19,170.16,0.04352315]
[1747717211544,0.04080629,170.2,170.16,0.04352315]
[1747717212549,0.04080629,170.2,170.16,5.91862315]
[1747717213143,17.62,170.36,170.17,118.48]
[1747717213348,7.00232722,170.36,170.21,7.00232722]
[1747717213549,7.00232722,170.3,170.22,1.46930895]
[1747717213845,5.8712,170.29,170.23,5.8729]
[1747717214051,5.8712,170.29,170.22,1.46930895]
[1747717214250,0.04379219,170.27,170.24,0.04141641]
[1747717214844,7.04611941,170.27,170.24,0.04141641]
[1747717215045,69.68611941,170.27,170.24,0.04141641]
[1747717215546,62.68379219,170.27,170.24,0.04141641]
[1747717215751,62.68379219,170.27,170.25,5.8723]
[1747717215951,62.68379219,170.27,170.24,0.04141641]
[1747717216148,0.04379219,170.27,170.26,5.872]
[1747717216757,0.04379219,170.27,170.24,0.04141641]
[1747717217361,0.04379219,170.27,170.25,5.872]
[1747717217559,0.04379219,170.27,170.24,0.04141641]
[1747717217756,0.04379219,170.27,170.26,5.872]
[1747717218864,0.04379219,170.27,170.25,5.8722]
[1747717219061,11.01989272,170.27,170.25,5.8722]
[1747717219555,0.04379219,170.27,170.25,5.8722]
[1747717219859,62.66379219,170.27,170.24,0.04141641]
[1747717220459,68.53549219,170.27,170.24,0.04141641]
[1747717221360,5.872,170.26,170.24,0.04141641]
[1747717221756,68.53549219,170.27,170.24,0.04141641]
[1747717222462,62.66379219,170.27,170.24,0.04141641]
[1747717223664,68.53539219,170.27,170.24,0.04141641]
[1747717223962,62.66379219,170.27,170.24,0.04141641]
[1747717225564,5.872,170.26,170.24,0.04141641]
[1747717228460,5.8723,170.25,170.24,0.04141641]
[1747717228662,7.7824,170.25,170.24,0.04141641]
[1747717229260,1.9101,170.25,170.11,6.1258]
[1747717229466,7.00232722,170.23,170.12,62.58]
[1747717229657,62.58,170.22,170.15,5.8755]